bitfinex-derivatives/quotes_BTCF0:USTF0_20250822
["timestamp","ask_amount","ask_price","bid_price","bid_amount"]
[1755866490639,0.30675405,112130.0,112120.0,0.02443]
[1755866490640,1.52387294,112130.0,112120.0,0.02443]
[1755866490930,1.52387294,112130.0,112120.0,0.8698]
[1755866491229,0.91755405,112130.0,112120.0,0.8698]
[1755866491426,0.55675405,112130.0,112120.0,0.8698]
[1755866491630,0.55675405,112130.0,112120.0,0.93089]
[1755866491930,1.05675405,112130.0,112120.0,0.93089]
[1755866492130,1.05675405,112130.0,112120.0,0.93114]
[1755866492318,1.05675405,112130.0,112120.0,0.96408]
[1755866492523,1.41755405,112130.0,112120.0,0.09448]
[1755866492723,1.41755405,112130.0,112120.0,0.93057]
[1755866493040,1.05675405,112130.0,112120.0,0.93057]
[1755866495527,1.41755405,112130.0,112120.0,0.93057]
[1755866496036,1.05675405,112130.0,112120.0,0.93057]
[1755866496531,1.05675405,112130.0,112120.0,0.96376]
[1755866496938,1.05675405,112130.0,112120.0,1.01297]
[1755866497232,0.80675405,112130.0,112120.0,1.01297]
[1755866497432,0.80675405,112130.0,112120.0,1.37377]
[1755866498032,0.30675405,112130.0,112120.0,1.37377]
[1755866498928,0.27060405,112130.0,112120.0,1.37377]
[1755866499323,0.54537405,112130.0,112120.0,0.14369]
[1755866499525,1.16307294,112130.0,112120.0,0.09448]
[1755866499830,1.52387294,112130.0,112120.0,0.0002]
[1755866500431,1.52387294,112130.0,112120.0,0.92769]
[1755866501440,0.55675405,112130.0,112120.0,0.96088]
[1755866501832,0.55675405,112130.0,112120.0,1.01009]
[1755866502027,0.30675405,112130.0,112120.0,1.3886927]
[1755866502227,0.30675405,112130.0,112120.0,1.0278927]
[1755866503242,0.30675405,112130.0,112120.0,1.3886927]
[1755866503444,0.30675405,112130.0,112120.0,0.1614927]
[1755866503645,0.30675405,112130.0,112120.0,1.0272127]
[1755866505344,0.30675405,112130.0,112120.0,0.1614927]
[1755866505549,0.30675405,112130.0,112120.0,1.0266127]
[1755866506147,0.30675405,112130.0,112120.0,0.1614927]
[1755866506452,0.30675405,112130.0,112120.0,1.0259727]
[1755866507746,0.27060405,112130.0,112120.0,1.3867727]
[1755866507953,0.0697979,112130.0,112120.0,1.3867727]
[1755866508351,0.0195079,112130.0,112120.0,1.7267832]
[1755866508950,0.0195079,112130.0,112120.0,2.33310209]
[1755866509649,0.03743129,112140.0,112130.0,0.14224]
[1755866509949,0.19256,112150.0,112140.0,0.0822]
[1755866510146,0.19256,112150.0,112140.0,1.00952]
[1755866510346,0.28585553,112150.0,112140.0,1.00952]
[1755866510556,0.25229553,112150.0,112140.0,1.37032]
[1755866511159,0.29692052,112150.0,112140.0,1.37032]
[1755866511354,0.26623052,112150.0,112140.0,1.37032]
[1755866511551,0.14141499,112150.0,112140.0,1.37032]
[1755866511749,0.11716499,112150.0,112140.0,1.37032]
[1755866512455,0.12016499,112150.0,112140.0,1.37032]
[1755866512653,0.14441499,112150.0,112140.0,1.37032]
[1755866512859,0.14461499,112150.0,112140.0,1.37032]
[1755866513452,0.20886499,112150.0,112140.0,0.50304]
[1755866513649,0.15105499,112150.0,112140.0,1.36972]
[1755866513852,0.17530499,112150.0,112140.0,1.36972]
[1755866514557,0.14461499,112150.0,112140.0,1.36972]
[1755866514951,0.17817499,112150.0,112140.0,0.50304]
[1755866515261,0.20886499,112150.0,112140.0,1.369]
[1755866515758,0.15105499,112150.0,112140.0,1.369]
[1755866515948,0.20886499,112150.0,112140.0,0.50304]
[1755866516150,0.24338499,112150.0,112140.0,1.36964]
[1755866516358,0.24338499,112150.0,112140.0,1.35160645]
[1755866516666,0.03201499,112150.0,112140.0,1.70904935]
[1755866516960,0.07937134,112190.0,112170.0,0.1658407]
[1755866517263,0.12448,112210.0,112190.0,0.03527]
[1755866517454,0.12448,112210.0,112200.0,0.07667]
[1755866517455,0.55336,112210.0,112200.0,0.07667]
[1755866517758,0.64607279,112210.0,112200.0,0.07667]
[1755866518058,0.64607279,112210.0,112200.0,0.94487]
[1755866518258,0.89607279,112210.0,112200.0,0.03527]
[1755866518454,0.04352,112190.0,112180.0,0.0414]
[1755866518660,0.19256,112190.0,112180.0,0.94491]
[1755866518858,0.21539692,112190.0,112180.0,1.30571]
[1755866519052,0.11364614,112190.0,112180.0,1.30571]
[1755866519557,0.04410614,112190.0,112180.0,1.90962536]
[1755866519758,0.05027,112200.0,112190.0,0.07667]
[1755866519954,0.07452,112200.0,112190.0,0.07667]
[1755866520257,0.19276,112200.0,112190.0,0.07667]
[1755866520461,0.80356,112200.0,112190.0,0.03527]
[1755866520761,0.89627901,112200.0,112190.0,0.90383]
[1755866520957,0.46739901,112200.0,112190.0,0.94523]
[1755866521258,0.55161822,112200.0,112190.0,0.07667]
[1755866521462,0.95393822,112200.0,112190.0,0.94475]
[1755866521668,0.59313822,112200.0,112190.0,0.94475]
[1755866522463,0.59313822,112200.0,112190.0,1.30555]
[1755866522852,0.59313822,112200.0,112190.0,0.94475]
[1755866523259,0.34313822,112200.0,112190.0,0.94475]
[1755866524058,0.30957822,112200.0,112190.0,0.94475]
[1755866524252,0.30957822,112200.0,112190.0,1.19475]
[1755866524467,0.15164921,112200.0,112190.0,1.19475]
[1755866524768,0.15164921,112200.0,112190.0,1.55555]
[1755866524964,0.15164921,112200.0,112190.0,1.19475]
[1755866525161,0.10812921,112200.0,112190.0,1.19475]
[1755866525367,0.0122,112200.0,112190.0,2.15946536]
[1755866525566,0.0122,112200.0,112190.0,1.55555]
[1755866525961,0.0122,112200.0,112190.0,2.15946536]
[1755866526560,0.0708599,112210.0,112190.0,2.11806536]
[1755866526759,0.51942487,112220.0,112210.0,0.06447]
[1755866526966,0.56294487,112220.0,112210.0,0.93075]
[1755866527563,0.52938487,112220.0,112210.0,0.06447]
[1755866527868,0.14829,112210.0,112200.0,0.86552]
[1755866528161,1.21036353,112210.0,112180.0,0.04756839]
[1755866528368,1.15727536,112200.0,112190.0,0.90079]
[1755866528561,0.55336,112200.0,112190.0,0.90079]
[1755866528759,0.5198,112200.0,112190.0,1.17999]
[1755866529071,0.41107,112200.0,112190.0,1.17999]
[1755866529370,0.13906659,112210.0,112200.0,0.06447]
[1755866529563,0.07752659,112210.0,112200.0,1.02918536]
[1755866529766,0.0082,112210.0,112200.0,1.27918536]
[1755866530160,0.03245,112210.0,112200.0,0.31447]
[1755866530361,0.77015536,112210.0,112200.0,0.92987]
[1755866530557,0.80467536,112210.0,112200.0,0.92987]
[1755866530758,0.05847,112210.0,112200.0,1.29067]
[1755866531169,0.06147,112210.0,112200.0,1.29067]
[1755866531468,0.05347,112210.0,112200.0,1.3086322]
[1755866531668,0.05347,112210.0,112200.0,0.4432322]
[1755866531866,0.05347,112210.0,112200.0,1.3115522]
[1755866532072,0.12479341,112210.0,112200.0,1.3115522]
[1755866532363,0.23256341,112210.0,112200.0,0.0824322]
[1755866532569,0.26708341,112210.0,112200.0,0.6549522]
[1755866532760,0.26708341,112210.0,112200.0,1.1717522]
[1755866532960,0.27408341,112210.0,112200.0,1.2009522]
[1755866534463,0.27408341,112210.0,112200.0,0.0532322]
[1755866534663,0.08152341,112210.0,112200.0,1.78634536]
[1755866534868,0.07452,112230.0,112200.0,1.51483]
[1755866535067,0.05027,112230.0,112220.0,0.0494]
[1755866535369,0.05027,112230.0,112220.0,1.27972]
[1755866535570,0.07452,112230.0,112220.0,1.27972]
[1755866535764,0.07452,112230.0,112220.0,0.91892]
[1755866536073,0.15214625,112230.0,112220.0,1.16892]
[1755866536375,0.12789625,112230.0,112220.0,1.52972]
[1755866536570,0.13189625,112230.0,112220.0,1.52972]
[1755866536771,0.17708035,112230.0,112220.0,1.16892]
[1755866537077,0.20133035,112230.0,112220.0,1.16892]
[1755866537571,0.17708035,112230.0,112220.0,1.52972]
[1755866537772,0.17808035,112230.0,112220.0,1.52972]
[1755866537968,0.13289625,112230.0,112220.0,1.52972]
[1755866538271,0.21038625,112230.0,112220.0,1.27876]
[1755866538472,0.21330203,112230.0,112220.0,1.27876]
[1755866538668,0.18909203,112230.0,112220.0,0.91796]
[1755866538873,0.17008203,112230.0,112220.0,0.91796]
[1755866539270,0.07582625,112230.0,112220.0,1.27876]
[1755866539570,0.07582625,112230.0,112220.0,2.13267536]
[1755866539778,0.07482625,112230.0,112220.0,0.6602]
[1755866540074,1.12022161,112230.0,112220.0,0.9088]
[1755866540370,0.51630625,112230.0,112220.0,0.90704]
[1755866541268,1.12022161,112230.0,112220.0,0.90704]
[1755866541563,0.19148,112220.0,112210.0,1.26793]
[1755866541765,1.15639536,112220.0,112210.0,0.90713]
[1755866541965,0.55248,112220.0,112210.0,0.90713]
[1755866542162,0.19168,112220.0,112210.0,0.90713]
[1755866542366,0.09397,112220.0,112210.0,1.28558]
[1755866543075,0.09397,112220.0,112210.0,0.92478]
[1755866543076,0.13004,112220.0,112210.0,0.92478]
[1755866543274,0.07176,112220.0,112210.0,0.92478]
[1755866543469,0.0022,112220.0,112210.0,1.53558]
[1755866543665,0.0022,112220.0,112210.0,1.26061536]
[1755866543870,0.07696,112220.0,112210.0,1.53606]
[1755866544069,0.05275,112220.0,112210.0,1.53606]
[1755866544369,0.0052,112220.0,112210.0,2.13997536]
[1755866544676,0.0052,112220.0,112210.0,1.53606]
[1755866545268,0.07996,112220.0,112210.0,0.2959]
[1755866545468,0.16269,112220.0,112210.0,1.53746]
[1755866546663,0.19668,112220.0,112210.0,0.4067]
[1755866546870,0.19668,112220.0,112210.0,1.27005]
[1755866547564,0.19668,112220.0,112210.0,0.63905]
[1755866547771,0.19668,112220.0,112210.0,1.15921]
[1755866548367,0.02421,112200.0,112190.0,0.3608]
[1755866548573,0.05055,112190.0,112180.0,0.01779292]
[1755866548768,0.05075,112190.0,112180.0,1.15079292]
[1755866548970,0.0002,112190.0,112180.0,2.00550828]
[1755866549572,0.0002,112190.0,112180.0,2.09467238]
[1755866549881,0.06873682,112220.0,112210.0,0.05574]
[1755866550067,0.11948682,112220.0,112210.0,0.89946]
[1755866550265,0.06873682,112220.0,112210.0,1.14946]
[1755866550482,0.06573682,112220.0,112210.0,1.14946]
[1755866550780,0.002,112220.0,112210.0,1.14946]
[1755866550980,0.02014755,112220.0,112210.0,1.14946]
[1755866551286,0.02114755,112220.0,112210.0,1.51026]
[1755866551477,0.02114755,112220.0,112210.0,2.11417536]
[1755866552180,0.02314755,112220.0,112210.0,1.51026]
[1755866554480,0.07369755,112220.0,112210.0,1.51026]
[1755866554784,0.07389755,112220.0,112210.0,1.51026]
[1755866555084,0.02334755,112220.0,112210.0,2.11417536]
[1755866556585,0.02334755,112220.0,112210.0,1.51026]
[1755866556788,0.02334755,112220.0,112210.0,2.11417536]
[1755866558386,0.02334755,112220.0,112210.0,2.20331566]
[1755866558387,0.00104755,112220.0,112210.0,2.20331566]
[1755866558588,0.00104755,112220.0,112210.0,2.11417536]
[1755866558789,0.00104755,112220.0,112210.0,1.51026]
[1755866558974,0.00104755,112220.0,112210.0,2.11417536]
[1755866559481,0.00104755,112220.0,112210.0,2.05843536]
[1755866561583,0.07062625,112230.0,112210.0,2.05843536]
[1755866561784,0.13770721,112240.0,112220.0,0.96471536]
[1755866561984,0.32579807,112240.0,112230.0,0.8776]
[1755866562182,0.35978807,112240.0,112230.0,0.8776]
[1755866562982,0.27524807,112240.0,112230.0,0.8776]
[1755866563283,0.21885807,112240.0,112230.0,0.89552709]
[1755866563488,0.21885807,112240.0,112230.0,1.86024245]
[1755866563984,0.39487,112250.0,112230.0,2.11547245]
[1755866563985,0.39045,112250.0,112230.0,2.11547245]
[1755866564189,0.06373682,112250.0,112240.0,0.97831536]
[1755866564386,0.18067924,112260.0,112240.0,0.97831536]
[1755866564691,0.08729242,112260.0,112250.0,1.85471536]
[1755866564886,0.08749242,112260.0,112250.0,1.85471536]
[1755866565095,0.0002,112260.0,112250.0,2.10471536]
[1755866565389,0.06393682,112260.0,112250.0,2.17483004]
[1755866565592,0.08274682,112270.0,112260.0,0.01308]
[1755866565799,0.08274682,112270.0,112250.0,0.90449786]
[1755866565800,0.14093,112260.0,112250.0,0.90449786]
[1755866565988,0.55228,112260.0,112250.0,0.01828786]
[1755866566297,0.19148,112250.0,112240.0,1.23896]
[1755866566494,0.19148,112250.0,112230.0,2.07392709]
[1755866566693,0.19148,112240.0,112230.0,2.07392709]
[1755866566888,0.19148,112240.0,112230.0,2.59140709]
[1755866567096,0.19148,112240.0,112230.0,1.71312709]
[1755866567396,0.19148,112240.0,112230.0,2.95200709]
[1755866567894,0.19148,112240.0,112230.0,2.95500709]
[1755866568396,0.19148,112240.0,112230.0,2.59420709]
[1755866568596,0.44148,112240.0,112230.0,2.07692709]
[1755866568796,0.44148,112240.0,112230.0,2.95524709]
[1755866568797,0.44168,112240.0,112230.0,2.95524709]
[1755866569100,0.44168,112240.0,112230.0,2.59444709]
[1755866569393,0.44168,112240.0,112230.0,0.90681709]
[1755866569692,0.80248,112240.0,112230.0,0.02897709]
[1755866569898,0.86621682,112240.0,112230.0,0.90689709]
[1755866570092,0.44187,112240.0,112230.0,0.90689709]
[1755866570396,0.4599228,112240.0,112230.0,0.91389709]
[1755866571193,0.4599228,112240.0,112230.0,0.91373709]
[1755866571589,0.4599228,112240.0,112230.0,0.02792709]
[1755866571793,1.42543816,112240.0,112230.0,0.88728]
[1755866572394,1.33586617,112240.0,112230.0,0.89687]
[1755866572595,0.97506617,112240.0,112230.0,0.89687]
[1755866573698,0.4599228,112240.0,112230.0,0.89687]
[1755866573897,0.97506617,112240.0,112230.0,0.89687]
[1755866574594,0.4599228,112240.0,112230.0,0.89687]
[1755866574790,0.97506617,112240.0,112230.0,0.89687]
[1755866574995,0.4599228,112240.0,112230.0,0.89687]
[1755866575501,0.4599228,112240.0,112230.0,1.41201337]
[1755866575792,0.2081028,112240.0,112230.0,1.26366]
[1755866575993,0.2081028,112240.0,112230.0,1.77880337]
[1755866576190,0.2081028,112240.0,112230.0,1.26366]
[1755866576393,0.1784528,112240.0,112230.0,1.77880337]
[1755866576592,0.1441928,112240.0,112230.0,1.77880337]
[1755866577096,0.1441928,112240.0,112230.0,0.90286]
[1755866577397,0.1441928,112240.0,112230.0,1.77880337]
[1755866577598,0.1441928,112240.0,112230.0,0.38638]
[1755866577793,0.97521617,112240.0,112230.0,0.88732]
[1755866578094,0.97521617,112240.0,112230.0,0.01]
[1755866578293,0.97521617,112240.0,112230.0,0.88684]
[1755866578494,1.33601617,112240.0,112230.0,0.01]
[1755866579092,0.1758128,112240.0,112230.0,0.01959]
[1755866579296,0.2100728,112240.0,112230.0,0.01959]
[1755866579897,0.4600728,112240.0,112230.0,0.01959]
[1755866580094,0.4600728,112240.0,112230.0,0.38039]
[1755866580301,0.4600728,112240.0,112230.0,0.01959]
[1755866580597,0.4600728,112240.0,112230.0,0.02359]
[1755866580992,0.44202,112240.0,112230.0,0.38839]
[1755866581693,0.44202,112240.0,112230.0,0.02759]
[1755866581893,0.44202,112240.0,112230.0,0.38839]
[1755866582098,0.44202,112240.0,112230.0,0.02759]
[1755866582494,0.44202,112240.0,112230.0,0.38639]
[1755866582699,0.44202,112240.0,112230.0,0.02559]
[1755866582901,0.19202,112240.0,112230.0,0.38639]
[1755866583600,0.19202,112240.0,112230.0,0.39238]
[1755866584202,0.15776,112240.0,112230.0,1.24602151]
[1755866584499,0.05075,112240.0,112230.0,1.24602151]
[1755866584894,0.0002,112240.0,112230.0,1.33594601]
[1755866585397,0.0002,112240.0,112230.0,1.33514601]
[1755866585593,0.0002,112240.0,112230.0,1.24602151]
[1755866585795,0.07084,112240.0,112230.0,1.52074]
[1755866585994,0.09109,112240.0,112230.0,1.52074]
[1755866586198,0.04845,112240.0,112230.0,2.12438151]
[1755866586398,0.04845,112240.0,112230.0,1.52074]
[1755866586601,0.04845,112240.0,112230.0,2.12438151]
[1755866586794,0.04845,112240.0,112230.0,1.52074]
[1755866587002,0.12579,112240.0,112230.0,1.87438151]
[1755866587200,0.19167,112240.0,112230.0,1.87438151]
[1755866587595,0.09109,112240.0,112230.0,1.87438151]
[1755866587900,0.09109,112240.0,112230.0,1.87238151]
[1755866588303,0.04845,112240.0,112230.0,1.87238151]
[1755866588811,0.0002,112240.0,112230.0,2.21150601]
[1755866589395,0.0002,112240.0,112230.0,2.21250601]
[1755866589898,0.04825,112250.0,112240.0,0.01506]
[1755866590096,0.0441584,112260.0,112240.0,1.06861341]
[1755866590404,0.04825,112260.0,112250.0,1.84939151]
[1755866590595,0.12515,112260.0,112250.0,1.84939151]
[1755866591103,0.0685,112260.0,112250.0,1.84939151]
[1755866591304,0.04825,112260.0,112250.0,1.3348586]
[1755866591500,0.04825,112260.0,112250.0,1.93850011]
[1755866591696,0.06588,112270.0,112260.0,0.01506]
[1755866591697,0.04825,112270.0,112260.0,0.01506]
[1755866591901,0.04825,112270.0,112260.0,0.97950151]
[1755866592304,0.04825,112270.0,112260.0,0.62586]
[1755866592699,0.04825,112270.0,112260.0,1.22950151]
[1755866592899,0.12535,112270.0,112260.0,0.62586]
[1755866593195,0.15697,112270.0,112260.0,1.50526]
[1755866593501,0.12271,112270.0,112260.0,1.50826]
[1755866593806,0.15697,112270.0,112260.0,2.11190151]
[1755866594001,0.15697,112270.0,112260.0,2.11790151]
[1755866594303,0.0002,112270.0,112260.0,1.86211151]
[1755866594498,0.04845,112270.0,112260.0,2.11790151]
[1755866594695,0.0002,112270.0,112260.0,2.20700221]
[1755866595108,0.47493,112290.0,112280.0,0.00895]
[1755866595299,0.40905,112290.0,112280.0,1.49778151]
[1755866595495,0.04825,112290.0,112280.0,2.10858151]
[1755866595701,0.03426,112300.0,112280.0,2.19766631]
[1755866595995,0.04825,112300.0,112290.0,1.06805841]
[1755866596207,0.07064,112320.0,112310.0,0.01454]
[1755866596410,0.09089,112320.0,112310.0,1.85822151]
[1755866596600,0.19147,112320.0,112310.0,1.24899]
[1755866596801,0.19147,112320.0,112310.0,1.85263151]
[1755866597006,0.19147,112320.0,112310.0,1.85822151]
[1755866597007,0.23687137,112320.0,112310.0,1.85822151]
[1755866597199,0.17099137,112320.0,112310.0,1.85822151]
[1755866597401,0.20508137,112320.0,112310.0,0.26454]
[1755866597709,0.84532137,112320.0,112310.0,0.002]
[1755866597900,0.59532137,112320.0,112310.0,0.00804]
[1755866598101,0.59452137,112320.0,112310.0,0.00804]
[1755866598308,0.59552137,112320.0,112310.0,0.00604]
[1755866598608,0.59552137,112320.0,112310.0,0.003]
[1755866599509,0.59552137,112320.0,112310.0,0.005]
[1755866599808,0.84472137,112320.0,112310.0,0.88304]
[1755866600010,0.84472137,112320.0,112310.0,0.005]
[1755866600305,0.84552137,112320.0,112310.0,0.005]
[1755866600508,1.44916288,112320.0,112310.0,0.005]
[1755866600706,1.54990383,112320.0,112310.0,0.005]
[1755866602215,0.94546232,112320.0,112310.0,0.005]
[1755866602416,0.69546232,112320.0,112310.0,0.005]
[1755866602610,0.59472137,112320.0,112310.0,0.005]
[1755866603916,0.84472137,112320.0,112310.0,0.005]
[1755866604209,0.59472137,112320.0,112310.0,0.01066]
[1755866604808,0.59472137,112320.0,112310.0,0.26066]
[1755866605414,0.15443,112320.0,112310.0,1.22510151]
[1755866605612,0.09109,112320.0,112310.0,1.22863151]
[1755866606206,0.12518,112320.0,112310.0,1.22863151]
[1755866606415,0.09109,112320.0,112310.0,1.22863151]
[1755866606616,0.0002,112320.0,112310.0,1.31849251]
[1755866607618,0.0002,112320.0,112310.0,1.22863151]
[1755866607821,0.18964,112320.0,112310.0,1.24614]
[1755866608114,0.18964,112320.0,112310.0,0.37146]
[1755866608316,0.18964,112320.0,112310.0,1.2404]
[1755866608619,0.18964,112320.0,112310.0,1.24606]
[1755866609213,0.18964,112320.0,112310.0,1.24578]
[1755866609516,0.18964,112320.0,112310.0,0.3658]
[1755866609517,0.43964,112320.0,112310.0,0.3658]
[1755866609709,0.55044,112320.0,112310.0,0.005]
[1755866609916,0.18964,112320.0,112310.0,0.005]
[1755866610618,0.20768553,112320.0,112310.0,0.005]
[1755866615417,0.20768553,112320.0,112310.0,0.87832]
[1755866616723,0.20768553,112320.0,112310.0,0.005]
[1755866616923,1.33979704,112320.0,112290.0,1.69416]
[1755866617118,0.18944,112300.0,112290.0,2.56776]
[1755866617424,0.20768553,112300.0,112290.0,2.93185]
[1755866618121,0.20768553,112300.0,112290.0,2.93485]
[1755866618918,0.20768553,112300.0,112290.0,3.79202151]
[1755866619322,0.09022553,112300.0,112290.0,3.79202151]
[1755866619526,0.06648553,112300.0,112290.0,3.79202151]
[1755866620321,0.01824553,112300.0,112290.0,3.88189841]
[1755866621322,0.01824553,112300.0,112290.0,3.88489841]
[1755866621528,0.01824553,112300.0,112290.0,3.19138]
[1755866621715,0.01824553,112300.0,112290.0,3.79502151]
[1755866621914,0.01824553,112300.0,112290.0,3.88409841]
[1755866622627,0.01824553,112300.0,112290.0,3.79502151]
[1755866623528,0.06648553,112300.0,112290.0,3.79502151]
[1755866624931,0.01824553,112300.0,112290.0,3.2804569]
[1755866625421,0.09022553,112300.0,112290.0,3.18874]
[1755866625621,0.09022553,112300.0,112290.0,3.79238151]
[1755866625820,0.11085553,112300.0,112290.0,2.92142151]
[1755866626024,0.20768553,112300.0,112290.0,3.53829151]
[1755866626224,0.20768553,112300.0,112290.0,2.66789151]
[1755866626529,0.20768553,112300.0,112290.0,3.53857151]
[1755866626924,0.20768553,112300.0,112290.0,3.54210151]
[1755866627429,0.20667553,112300.0,112290.0,3.54210151]
[1755866627830,0.20667553,112300.0,112290.0,2.67142151]
[1755866628128,0.20667553,112300.0,112290.0,3.54194151]
[1755866628531,0.20667553,112300.0,112290.0,2.9393]
[1755866628828,0.20667553,112300.0,112290.0,3.54294151]
[1755866629726,0.11085553,112300.0,112290.0,3.54294151]
[1755866630125,0.06648553,112300.0,112290.0,3.54394151]
[1755866631123,0.06648553,112300.0,112290.0,2.9403]
[1755866631327,0.06648553,112300.0,112290.0,3.54394151]
[1755866631527,0.06648553,112300.0,112290.0,1.24614]
[1755866631725,0.06648553,112300.0,112290.0,1.84978151]
[1755866631926,0.01600553,112300.0,112290.0,2.18885841]
[1755866632122,0.0507,112310.0,112300.0,0.00203]
[1755866632332,0.18862,112310.0,112300.0,1.233]
[1755866633234,0.18862,112310.0,112300.0,1.20931435]
[1755866633426,0.18862,112310.0,112300.0,1.21231435]
[1755866633628,0.43862,112310.0,112300.0,0.00924]
[1755866633837,0.15554,112310.0,112300.0,1.84459151]
[1755866634023,0.12603,112310.0,112300.0,1.84459151]
[1755866634228,0.094,112310.0,112300.0,1.84459151]
[1755866635026,0.0507,112310.0,112300.0,2.09459151]
[1755866635230,0.0507,112310.0,112300.0,2.18366051]
[1755866635231,0.0002,112310.0,112300.0,2.18366051]
[1755866635425,0.20073682,112330.0,112300.0,2.18366051]
[1755866635736,0.15659,112330.0,112320.0,0.60839151]
[1755866636034,0.18862,112330.0,112320.0,0.87303]
[1755866636221,0.43862,112330.0,112320.0,0.00292]
[1755866636427,0.43862,112330.0,112320.0,0.87104]
[1755866637430,0.40911,112330.0,112320.0,0.87387]
[1755866637629,0.43862,112330.0,112320.0,0.00392]
[1755866637933,0.50235682,112330.0,112320.0,0.86848]
[1755866638132,0.86315682,112330.0,112320.0,0.86848]
[1755866638337,0.50235682,112330.0,112320.0,0.86848]
[1755866639329,1.56313122,112330.0,112320.0,0.001]
[1755866639526,1.4995944,112330.0,112320.0,0.001]
[1755866640138,1.9995944,112330.0,112320.0,0.001]
[1755866642539,1.39595289,112330.0,112320.0,0.001]
[1755866642738,1.9995944,112330.0,112320.0,0.001]
[1755866642937,0.07533,112310.0,112290.0,0.3608]
[1755866643235,0.18862,112300.0,112290.0,0.00292]
[1755866643438,0.18882,112300.0,112290.0,1.2298]
[1755866643839,0.20724944,112300.0,112290.0,1.2298]
[1755866644033,0.20724944,112300.0,112290.0,1.2338]
[1755866644234,0.20724944,112300.0,112290.0,1.23563]
[1755866644432,0.20724944,112300.0,112290.0,1.23963]
[1755866644638,0.20724944,112300.0,112290.0,1.84327151]
[1755866645034,0.01862944,112300.0,112290.0,2.18314871]
[1755866645441,0.01679944,112300.0,112290.0,2.18314871]
[1755866645640,0.0507,112310.0,112290.0,2.18031871]
[1755866645840,0.0507,112310.0,112300.0,0.4498693]
[1755866646029,0.07441,112320.0,112300.0,1.05351081]
[1755866646230,0.0507,112320.0,112310.0,1.83048151]
[1755866646429,0.0507,112320.0,112310.0,1.74102318]
[1755866646634,0.0507,112320.0,112310.0,1.22684]
[1755866646937,0.0507,112320.0,112310.0,1.74102318]
[1755866647544,0.0507,112320.0,112310.0,1.99102318]
[1755866648442,0.0507,112320.0,112310.0,2.07942717]
[1755866648941,0.0507,112320.0,112310.0,2.08142717]
[1755866649143,0.0507,112320.0,112310.0,2.08342717]
[1755866649943,0.0507,112320.0,112310.0,1.21738717]
[1755866650140,0.0507,112320.0,112310.0,2.08338717]
[1755866650540,0.0507,112320.0,112310.0,1.4808]
[1755866650840,0.0507,112320.0,112310.0,2.08338717]
[1755866651041,0.15554,112320.0,112310.0,0.3648]
[1755866651343,0.18862,112320.0,112310.0,1.2308]
[1755866652343,0.18622,112320.0,112310.0,1.2308]
[1755866653337,0.18622,112320.0,112310.0,1.2332]
[1755866655438,0.0916,112320.0,112310.0,1.83578717]
[1755866655649,0.0483,112320.0,112310.0,2.08678717]
[1755866656041,0.18622,112320.0,112310.0,1.4842]
[1755866656242,0.18622,112320.0,112310.0,1.4852]
[1755866656635,0.18622,112320.0,112310.0,0.62064]
[1755866657144,0.18622,112320.0,112310.0,1.48656]
[1755866657345,0.20464996,112320.0,112310.0,1.48656]
[1755866657542,0.20464996,112320.0,112310.0,1.48749]
[1755866657747,0.14205996,112320.0,112310.0,1.46080673]
[1755866657943,0.14205996,112320.0,112310.0,1.45880673]
[1755866658250,0.17414996,112320.0,112310.0,2.0643939]
[1755866658541,0.11834996,112320.0,112310.0,2.0663939]
[1755866658844,0.01842996,112320.0,112310.0,2.0663939]
[1755866659047,0.01842996,112320.0,112310.0,2.0643939]
[1755866659252,0.06574996,112320.0,112310.0,2.09107717]
[1755866662640,0.06574996,112320.0,112310.0,1.22515717]
[1755866662843,0.06594996,112320.0,112310.0,2.09115717]
[1755866663039,0.08751996,112320.0,112310.0,2.09115717]
[1755866663636,0.10640996,112320.0,112310.0,1.48857]
[1755866663837,0.16723996,112320.0,112310.0,2.09115717]
[1755866664042,0.10640996,112320.0,112310.0,1.48857]
[1755866664349,0.06594996,112320.0,112310.0,2.09115717]
[1755866666150,0.06594996,112320.0,112310.0,1.22535717]
[1755866666340,0.01862996,112320.0,112310.0,2.18013857]
[1755866667149,0.01775996,112320.0,112310.0,2.18093857]
[1755866667341,0.0002,112320.0,112310.0,2.18093857]
[1755866667747,0.0002,112320.0,112310.0,2.18009857]
[1755866668352,0.0002,112320.0,112310.0,2.09160538]
[1755866669048,0.09175002,112340.0,112320.0,0.0890532]
[1755866669251,0.09195002,112340.0,112330.0,1.74057398]
[1755866669854,0.11352002,112340.0,112330.0,1.74057398]
[1755866670053,0.11352002,112340.0,112330.0,1.81207763]
[1755866670256,0.09195002,112340.0,112330.0,1.81207763]
[1755866670554,0.04752,112340.0,112330.0,1.7853991]
[1755866670751,0.04732,112350.0,112330.0,2.3961991]
[1755866670953,0.02874,112350.0,112340.0,0.87489398]
[1755866671154,0.73338787,112350.0,112340.0,1.22636]
[1755866671359,1.09498787,112350.0,112340.0,0.86556]
[1755866671655,0.21929389,112350.0,112340.0,0.86556]
[1755866671849,0.21929389,112350.0,112340.0,0.51409398]
[1755866672044,0.11114389,112350.0,112340.0,0.86552]
[1755866672251,0.47194389,112350.0,112330.0,0.87789398]
[1755866672554,0.13439,112340.0,112330.0,0.87789398]
[1755866672758,0.14982,112340.0,112330.0,1.74541398]
[1755866672957,0.12108,112340.0,112330.0,1.74541398]
[1755866673350,0.11908,112340.0,112330.0,1.74314398]
[1755866673751,0.11908,112340.0,112330.0,1.74114398]
[1755866674058,0.11908,112340.0,112330.0,1.74814398]
[1755866674258,0.15117,112340.0,112330.0,0.88378398]
[1755866674457,0.17991,112340.0,112330.0,1.74926398]
[1755866675352,0.11908,112340.0,112330.0,1.74926398]
[1755866675552,0.08618,112340.0,112330.0,1.74926398]
[1755866676150,0.06729,112340.0,112330.0,1.99926398]
[1755866676355,0.04752,112340.0,112330.0,1.99926398]
[1755866676552,0.04752,112340.0,112330.0,1.97258545]
[1755866676756,0.06909,112340.0,112330.0,1.97246545]
[1755866676962,0.08798,112340.0,112330.0,1.97246545]
[1755866677255,0.12007,112340.0,112330.0,1.97242545]
[1755866677561,0.18171,112340.0,112330.0,1.97242545]
[1755866677957,0.06641,112340.0,112330.0,1.97238545]
[1755866678263,0.12007,112340.0,112330.0,1.97238545]